{"text_format":"1","workbook":"xlsx","n_sheets":2,"sheets":["General Lic Fee Calculator","Dropdown Lists"],"not_rendered":{"charts":0,"images":2,"macros":1,"external_links":0,"defined_names":12,"comments":0,"pivot_tables":0},"unopened":[],"bounds":{"document_bytes":16777216,"sheet_cells":100000,"rows_first":2000,"rows_last":500,"rows_between":2000,"halvings":0,"cell_chars":16384,"cell_head_chars":4096},"cells_cut":0,"cells_raw":0,"read":"whole","date_system":"1900"}

{"sheet":"General Lic Fee Calculator","index":0,"n_rows":44,"n_cols":4,"rows_kept":44,"cut":false,"hidden":false,"merged":[[41,0,41,3],[34,0,34,2],[13,1,13,2],[0,0,0,1],[1,0,3,1],[5,0,5,3],[38,0,38,3],[39,0,39,3],[4,0,4,3],[12,0,12,3],[7,0,7,3],[35,1,35,2],[31,0,31,1]]}
["BRP WW24\nInland Structure(s) General License Fee Calculator - Great Ponds, Lakes or Nontidal Rivers",null,"Transmittal Number:"]
["This Fee Calculator is provided for your convenience.  You can choose to submit your own calculation worksheet or contact the Waterways Regulation Staff at: (617) 292-5929 or dep.waterways@massmail.state.ma.us.\nMandatory Baseline General License Processing Fee: $75.00",null,"Applicant Name:"]
[null,null,"Landowner Name (if not applicant):"]
[]
["Directions:  Sections that you need to fill out for this Fee Calculator are highlighted in Yellow."]
["\nStep 1) Remainder of Term Ending on 4/13/2030: Click \"Calendar Year\" and use the drop-down list to select the year that you are submitting the GL Certification Application.\nStep 2) Great Pond or Tidal River: Click the Municipality/Town to select from the drop down menu that name of your town.\nStep 3) Name of Great Pond/Nontidal River: Click the Waterbody tab and select the name of the waterbody associated with your structure.\nStep 4) Commonwealth Waters Occupied (piles/posts): Select from drop down menu on the right after clicking the box and select the size and shape of your stucture's piles/posts.  If you have a mixture of pile sizes, choose the largest size for all the piles & posts.  Click \"Add Row for Additional Pile/Post\" if you have additional piles/posts of different shapes.*\nStep 5) Commonwealth Waters Occupied (piles/posts):  Enter the number of piles for your structure.  Add additional rows if necessary.*\nStep 6) Commonwealth Waters Occupied (Type of structure(s) Piers, Ramps, Floats, etc.): Click the box and select your structure from the drop down menu.  Add additional rows if necessary.*\nStep 7 & 8) Commonwealth Waters Occupied (Types of structures - Piers, Ramps, Floats, Other): In each yellow box - enter the length and width of the proposed structure(s) that is below Ordinary Water line (generally where the water line is observed in average conditions).  Add additional rows if necessary.* Waterward means going in the direction of the water or waterbody.\n\n*Note: If you add rows in step 4 or step 6 by mistake leave the fields for that row blank so that unnecessary fees are not added into the calculation."]
[]
["Remainder of Term Ending on 4/13/2030"]
["Select Year You Are Applying (Step 1)","Remaining Years"]
["Calendar Year - Click for Dropdown Menu -->",{"$f":"VLOOKUP(A10,'Dropdown Lists'!D2:E16,2,FALSE)","v":{"$error":"#N/A"}}]
[]
["Great Pond or Nontidal River"]
["After selecting a town, Pond/Lake/NonTidal River Name will automatically populate with available choices."]
["Municipality (Select Town)(Step 2)","Name of Great Pond, Lake, or Nontidal River (Step 3)"]
["Town - Click for Dropdown Menu ---->","Water Body - Click for Dropdown Menu -->"]
[]
["Commonwealth Waters Occupied (Piles/Posts)"]
["Pile/Post (Select Type) (Step 4)","Number of Piles (You Enter #) (Step 5)",null,"Occupation Area (ft2)"]
["Piles/Posts- Click for Dropdown Menu ---->",null,"-------------------------------------------------",{"$f":"VLOOKUP($A$19,'Dropdown Lists'!$A$2:$B$12,2,FALSE)*$B$19","v":0}]
[]
[]
[null,null,"Total Piles/Posts Occupation Area (ft2)",{"$f":"SUM(D19:D19)","v":0}]
[]
["Commonwealth Waters Occupied (Structures - Piers, Ramps, Floats, Other)"]
["Structure (Select Type) (Step 6)","Length in feet farthest waterward from ordinary water line (You Enter #)(Step 7)","Width in feet farthest waterward from ordinary water line (You Enter #)(Step 8)","Occupation Area (ft2)"]
["Structures- Click for Dropdown Menu ---->",null,null,{"$f":"B26*C26","v":0}]
[]
[]
[null,null,"Total Structures Occupation Area (ft2)",{"$f":"SUM(D26:D26)","v":0}]
[]
[]
[null,null,"Total Occupation Area (ft2)",{"$f":"SUM(pilesTotalOccupationArea, structuresTotalOccupationArea)","v":0}]
[null,null,"Total Occupation Area (yd2)",{"$f":"ROUND((totalOccupationAreaSquareFeet/9), 1)","v":0}]
[null,null,"Occupation Fee Rate","$1.00/yd2/year"]
["Total Commonwealth Waters Occupation Fee Due"]
[null,"Mandatory Baseline General License Processing Fee",null,75]
["Type/Write in Your Check/Money Order Number",null,"Total Fee Paid",{"$f":"SUM(D35:D36)","v":75}]
[]
["Print this page and submit a copy of this calculator that includes the transmittal number, applicant/landowner name, a copy of your completed General License Certification and your check or money order payable to Commonwealth of Massachusetts and mail to:"]
["Massachusetts Department of Environmental Protection\nP.O. Box 4062\nBoston, MA 02211"]
["Make an additional copy of this completed calculator, a copy of your check payment and the original GL Certification Application Form and send to:"]
["MassDEP's Waterways Regulation Program\nOne Winter Street, 5th Floor\nBoston, MA 02108"]
[]
["Version 2.6.1, January 09, 2019"]

{"sheet":"Dropdown Lists","index":1,"n_rows":615,"n_cols":13,"rows_kept":615,"cut":false,"hidden":true,"merged":[]}
["Piles/Posts- Click for Dropdown Menu ---->","XS-Area (ft2)",null,"Calendar Year - Click for Dropdown Menu -->","Term (years)",null,"LookUp","Town","County","Water Body - Click for Dropdown Menu -->","Natural/Apparent (Yes or No)","Enlarged (Yes or No)","No Information (Yes, if no info)"]
["Piles/Posts- Click for Dropdown Menu ---->",0,null,2015,15,null,{"$f":"CONCATENATE(H2,J2)","v":"Any TownAny nontidal river or stream"},"Any Town","Any County","Any nontidal river or stream","Y"]
["2-inch Diameter Pipe Circular",2.1999999999999999E-2,null,2016,14,null,{"$f":"CONCATENATE(H3,J3)","v":"BarnstableGarretts Pond"},"Barnstable","Barnstable","Garretts Pond","Y"]
["4-inch Diameter Pipe Circular",8.6999999999999994E-2,null,2017,13,null,{"$f":"CONCATENATE(H4,J4)","v":"BarnstableHamblin Pond"},"Barnstable","Barnstable","Hamblin Pond","Y"]
["6-inch Diameter Circular",0.2,null,2018,12,null,"BarnstableHathaway Pond (lower portion)","Barnstable","Barnstable","Hathaway Pond (lower portion)","Y"]
["8-inch Diameter Circular",0.35,null,2019,11,null,"BarnstableLong Pond","Barnstable","Barnstable","Long Pond","Y"]
["10-inch Diameter Circular",0.55000000000000004,null,2020,10,null,"BarnstableLovell's Pond","Barnstable","Barnstable","Lovell's Pond","Y"]
["12-inch Diameter Circular",0.79,null,2021,9,null,"BarnstableMiddle Pond","Barnstable","Barnstable","Middle Pond",null,"Y"]
["4\" x 4\" Square",0.11,null,2022,8,null,"BarnstableMystic Pond","Barnstable","Barnstable","Mystic Pond","Y"]
["4\" x 6\" square",0.17,null,2023,7,null,"BarnstableRed Lily Pond/Lake Elizabeth","Barnstable","Barnstable","Red Lily Pond/Lake Elizabeth","Y"]
["6\" x 6\" square",0.25,null,2024,6,null,"BarnstableRound Pond","Barnstable","Barnstable","Round Pond",null,null,"Y"]
["8\" x 8\" square",0.44,null,2025,5,null,"BarnstableRushy Marsh Pond","Barnstable","Barnstable","Rushy Marsh Pond","Y"]
[null,null,null,2026,4,null,"BarnstableShubael Pond","Barnstable","Barnstable","Shubael Pond","Y"]
[null,null,null,2027,3,null,"BarnstableWequaquet Lake (includes Bearse Pond)","Barnstable","Barnstable","Wequaquet Lake (includes Bearse Pond)",null,"Y"]
[null,null,null,2028,2,null,"BrewsterBaker's Pond","Brewster","Barnstable","Baker's Pond",null,null,"Y"]
[null,null,null,2029,1,null,"BrewsterBlack Pond","Brewster","Barnstable","Black Pond","Y"]
[null,null,null,null,null,null,"BrewsterBlueberry Pond","Brewster","Barnstable","Blueberry Pond","Y"]
[null,null,null,null,null,null,"BrewsterCahoon Pond","Brewster","Barnstable","Cahoon Pond","Y"]
[null,null,null,null,null,null,"BrewsterCanoe Pond","Brewster","Barnstable","Canoe Pond","Y"]
[null,null,null,null,null,null,"BrewsterCliff Pond","Brewster","Barnstable","Cliff Pond","Y"]
[null,null,null,null,null,null,"BrewsterCobbs Pond","Brewster","Barnstable","Cobbs Pond","Y"]
[null,null,null,null,null,null,"BrewsterElbow Pond","Brewster","Barnstable","Elbow Pond","Y"]
[null,null,null,null,null,null,"BrewsterFlax Pond","Brewster","Barnstable","Flax Pond","Y"]
[null,null,null,null,null,null,"BrewsterGrassy Pond","Brewster","Barnstable","Grassy Pond","Y"]
[null,null,null,null,null,null,"BrewsterGreenland Pond","Brewster","Barnstable","Greenland Pond","Y"]
[null,null,null,null,null,null,"BrewsterGriffith's Pond","Brewster","Barnstable","Griffith's Pond","Y"]
["Structures- Click for Dropdown Menu ---->",null,null,null,null,null,"BrewsterHiggin's Pond","Brewster","Barnstable","Higgin's Pond","Y"]
["Pier",null,null,null,null,null,"BrewsterLittle Cliff Pond","Brewster","Barnstable","Little Cliff Pond","Y"]
["Ramp/Gangway",null,null,null,null,null,"BrewsterLong Pond","Brewster","Barnstable","Long Pond","Y"]
["Float",null,null,null,null,null,"BrewsterLower Mill Pond","Brewster","Barnstable","Lower Mill Pond",null,"Y"]
["Other",null,null,null,null,null,"BrewsterPine Pond","Brewster","Barnstable","Pine Pond","Y"]
[null,null,null,null,null,null,"BrewsterSeymour Pond/Bangs Pond","Brewster","Barnstable","Seymour Pond/Bangs Pond","Y"]
[null,null,null,null,null,null,"BrewsterSheep Pond","Brewster","Barnstable","Sheep Pond","Y"]
[null,null,null,null,null,null,"BrewsterSlough Pond","Brewster","Barnstable","Slough Pond","Y"]
[null,null,null,null,null,null,"BrewsterSmalls Pond","Brewster","Barnstable","Smalls Pond","Y"]
["Town - Click for Dropdown Menu ---->",null,null,null,null,null,"BrewsterSmith Pond","Brewster","Barnstable","Smith Pond","Y"]
["Abington",null,null,null,null,null,"BrewsterUpper Mill Pond","Brewster","Barnstable","Upper Mill Pond","Y"]
["Acton",null,null,null,null,null,"BrewsterWalkers Pond","Brewster","Barnstable","Walkers Pond","Y"]
["Amesbury",null,null,null,null,null,"BourneGreat Herring Pond","Bourne","Barnstable","Great Herring Pond","Y"]
["Andover",null,null,null,null,null,"ChathamEmery Pond","Chatham","Barnstable","Emery Pond","Y"]
["Any Town",null,null,null,null,null,"ChathamGoose Pond","Chatham","Barnstable","Goose Pond","Y"]
["Arlington",null,null,null,null,null,"ChathamLovers Lake","Chatham","Barnstable","Lovers Lake","Y"]
["Ashburnham",null,null,null,null,null,"ChathamMill Pond","Chatham","Barnstable","Mill Pond","Y"]
["Ashfield",null,null,null,null,null,"ChathamSchoolhouse Pond","Chatham","Barnstable","Schoolhouse Pond","Y"]
["Ashland",null,null,null,null,null,"ChathamStillwater Pond","Chatham","Barnstable","Stillwater Pond","Y"]
["Athol",null,null,null,null,null,"ChathamWhite Pond","Chatham","Barnstable","White Pond","Y"]
["Auburn",null,null,null,null,null,"DennisBaker's Pond","Dennis","Barnstable","Baker's Pond",null,null,"Y"]
["Ayer",null,null,null,null,null,"DennisEagle Pond","Dennis","Barnstable","Eagle Pond",null,null,"Y"]
["Barnstable",null,null,null,null,null,"DennisFlax Pond","Dennis","Barnstable","Flax Pond","Y"]
["Becket",null,null,null,null,null,"DennisFresh Pond","Dennis","Barnstable","Fresh Pond","Y"]
["Belchertown",null,null,null,null,null,"DennisGrassy Pond","Dennis","Barnstable","Grassy Pond","Y"]
["Bellingham",null,null,null,null,null,"DennisRun Pond","Dennis","Barnstable","Run Pond",null,null,"Y"]
["Belmont",null,null,null,null,null,"DennisScargo Pond","Dennis","Barnstable","Scargo Pond","Y"]
["Berlin",null,null,null,null,null,"DennisSimmons Pond","Dennis","Barnstable","Simmons Pond","Y"]
["Beverly",null,null,null,null,null,"DennisWhite Pond","Dennis","Barnstable","White Pond","Y"]
["Billerica",null,null,null,null,null,"EasthamDepot Pond","Eastham","Barnstable","Depot Pond","Y"]
["Blackstone",null,null,null,null,null,"EasthamGreat Pond","Eastham","Barnstable","Great Pond","Y"]
["Blandford",null,null,null,null,null,"EasthamHerring/Coles Pond","Eastham","Barnstable","Herring/Coles Pond","Y"]
["Bolton",null,null,null,null,null,"EasthamMinister Pond","Eastham","Barnstable","Minister Pond","Y"]
["Boston",null,null,null,null,null,"FalmouthAshumet Pond","Falmouth","Barnstable","Ashumet Pond",null,null,"Y"]
["Bourne",null,null,null,null,null,"FalmouthBournes Pond","Falmouth","Barnstable","Bournes Pond","Y"]
["Boxborough",null,null,null,null,null,"FalmouthCedar Lake","Falmouth","Barnstable","Cedar Lake","Y"]
["Boxford",null,null,null,null,null,"FalmouthCoonemossett Pond","Falmouth","Barnstable","Coonemossett Pond","Y"]
["Boylston",null,null,null,null,null,"FalmouthCrooked Pond","Falmouth","Barnstable","Crooked Pond",null,null,"Y"]
["Braintree",null,null,null,null,null,"FalmouthDeep Pond","Falmouth","Barnstable","Deep Pond","Y"]
["Brewster",null,null,null,null,null,"FalmouthEel Pond","Falmouth","Barnstable","Eel Pond",null,null,"Y"]
["Bridgewater",null,null,null,null,null,"FalmouthFlax Pond","Falmouth","Barnstable","Flax Pond","Y"]
["Brimfield",null,null,null,null,null,{"$f":"CONCATENATE(H68,J68)","v":"FalmouthFlume Pond"},"Falmouth","Barnstable","Flume Pond","Y"]
["Brookfield",null,null,null,null,null,"FalmouthFresh Pond","Falmouth","Barnstable","Fresh Pond","Y"]
["Cambridge",null,null,null,null,null,"FalmouthGrews Pond","Falmouth","Barnstable","Grews Pond","Y"]
["Canton",null,null,null,null,null,"FalmouthHamblin Pond","Falmouth","Barnstable","Hamblin Pond",null,null,"Y"]
["Carver",null,null,null,null,null,"FalmouthJenkins Pond","Falmouth","Barnstable","Jenkins Pond","Y"]
["Charlton",null,null,null,null,null,"FalmouthJones Pond","Falmouth","Barnstable","Jones Pond","Y"]
["Chatham",null,null,null,null,null,"FalmouthLong Pond","Falmouth","Barnstable","Long Pond","Y"]
["Chelmsford",null,null,null,null,null,"FalmouthMares Pond","Falmouth","Barnstable","Mares Pond","Y"]
["Chilmark",null,null,null,null,null,"FalmouthMill Pond","Falmouth","Barnstable","Mill Pond",null,null,"Y"]
["Clinton",null,null,null,null,null,"FalmouthMorse Pond","Falmouth","Barnstable","Morse Pond","Y"]
["Cohassett",null,null,null,null,null,"FalmouthOyster Pond","Falmouth","Barnstable","Oyster Pond","Y"]
["Concord",null,null,null,null,null,"FalmouthPerch Pond","Falmouth","Barnstable","Perch Pond",null,null,"Y"]
["Dedham",null,null,null,null,null,"FalmouthRound Ponds","Falmouth","Barnstable","Round Ponds","Y"]
["Dennis",null,null,null,null,null,"FalmouthSalt Pond","Falmouth","Barnstable","Salt Pond",null,null,"Y"]
["Douglas",null,null,null,null,null,"FalmouthShallow Pond","Falmouth","Barnstable","Shallow Pond","Y"]
["Dracut",null,null,null,null,null,"FalmouthShiverick's Pond","Falmouth","Barnstable","Shiverick's Pond",null,null,"Y"]
["Dudley",null,null,null,null,null,"FalmouthSiders Pond","Falmouth","Barnstable","Siders Pond","Y"]
["Dunstable",null,null,null,null,null,"FalmouthSpectacle Pond","Falmouth","Barnstable","Spectacle Pond","Y"]
["Duxbury",null,null,null,null,null,"FalmouthWings Pond","Falmouth","Barnstable","Wings Pond","Y"]
["East Bridgewater",null,null,null,null,null,"HarwichBangs/Seymours Pond","Harwich","Barnstable","Bangs/Seymours Pond",null,null,"Y"]
["Eastham",null,null,null,null,null,"HarwichBlack Pond","Harwich","Barnstable","Black Pond",null,null,"Y"]
["Edgartown",null,null,null,null,null,"HarwichBriar Pond","Harwich","Barnstable","Briar Pond",null,null,"Y"]
["Egremont",null,null,null,null,null,"HarwichBucks Pond","Harwich","Barnstable","Bucks Pond","Y"]
["Erving",null,null,null,null,null,"HarwichCahoon Pond","Harwich","Barnstable","Cahoon Pond",null,null,"Y"]
["Essex",null,null,null,null,null,"HarwichCornelius Pond","Harwich","Barnstable","Cornelius Pond",null,null,"Y"]
["Fall River",null,null,null,null,null,"HarwichEldridges/Walkers Pond","Harwich","Barnstable","Eldridges/Walkers Pond","Y"]
["Falmouth",null,null,null,null,null,"HarwichFlax Pond","Harwich","Barnstable","Flax Pond","Y"]
["Florida",null,null,null,null,null,"HarwichGrassy Pond","Harwich","Barnstable","Grassy Pond","Y"]
["Foxborough",null,null,null,null,null,"HarwichHawks Nest Pond","Harwich","Barnstable","Hawks Nest Pond","Y"]
["Framingham",null,null,null,null,null,"HarwichHinckleys Pond","Harwich","Barnstable","Hinckleys Pond",null,"Y"]
["Franklin",null,null,null,null,null,"HarwichIsland Pond","Harwich","Barnstable","Island Pond","Y"]
["Freetown",null,null,null,null,null,"HarwichJoseph's Pond","Harwich","Barnstable","Joseph's Pond","Y"]
["Gardner",null,null,null,null,null,"HarwichLong Pond","Harwich","Barnstable","Long Pond",null,null,"Y"]
["Gay Head",null,null,null,null,null,"HarwichOliver's Pond","Harwich","Barnstable","Oliver's Pond","Y"]
["Georgetown",null,null,null,null,null,"HarwichPaddocks Pond","Harwich","Barnstable","Paddocks Pond",null,null,"Y"]
["Gloucester",null,null,null,null,null,"HarwichRobbins Pond","Harwich","Barnstable","Robbins Pond","Y"]
["Gosnold",null,null,null,null,null,"HarwichSand Pond","Harwich","Barnstable","Sand Pond","Y"]
["Grafton",null,null,null,null,null,"HarwichSkinequit Pond","Harwich","Barnstable","Skinequit Pond","Y"]
["Great Barrington",null,null,null,null,null,"HarwichWalkers Pond","Harwich","Barnstable","Walkers Pond","Y"]
["Groton",null,null,null,null,null,"HarwichWhite Pond","Harwich","Barnstable","White Pond","Y"]
["Groveland",null,null,null,null,null,"MashpeeAshumet Pond","Mashpee","Barnstable","Ashumet Pond","Y"]
["Hadley",null,null,null,null,null,"MashpeeFlat Pond","Mashpee","Barnstable","Flat Pond","Y"]
["Halifax",null,null,null,null,null,"MashpeeHamblin Pond","Mashpee","Barnstable","Hamblin Pond",null,null,"Y"]
["Hamilton",null,null,null,null,null,"MashpeeJehu Pond","Mashpee","Barnstable","Jehu Pond","Y"]
["Hanson",null,null,null,null,null,"MashpeeJohns Pond","Mashpee","Barnstable","Johns Pond",null,"Y"]
["Harvard",null,null,null,null,null,"MashpeeMashpee Pond","Mashpee","Barnstable","Mashpee Pond",null,"Y"]
["Harwich",null,null,null,null,null,"MashpeeSantuit Pond","Mashpee","Barnstable","Santuit Pond",null,"Y"]
["Haverhill",null,null,null,null,null,"MashpeeWakeby Pond","Mashpee","Barnstable","Wakeby Pond",null,"Y"]
["Hingham",null,null,null,null,null,"OrleansBaker's Pond","Orleans","Barnstable","Baker's Pond","Y"]
["Holden",null,null,null,null,null,"OrleansCedar Pond","Orleans","Barnstable","Cedar Pond","Y"]
["Holland",null,null,null,null,null,"OrleansCrystal Lake/Fresh Pond","Orleans","Barnstable","Crystal Lake/Fresh Pond","Y"]
["Holliston",null,null,null,null,null,"OrleansPilgrim Pond","Orleans","Barnstable","Pilgrim Pond","Y"]
["Hopkinton",null,null,null,null,null,"ProvincetownClapp's Pond","Provincetown","Barnstable","Clapp's Pond","Y"]
["Hubbardston",null,null,null,null,null,"ProvincetownGreat Pond","Provincetown","Barnstable","Great Pond",null,null,"Y"]
["Hudson",null,null,null,null,null,"ProvincetownShank Painter Pond","Provincetown","Barnstable","Shank Painter Pond","Y"]
["Huntington",null,null,null,null,null,"SandwichHog Pond","Sandwich","Barnstable","Hog Pond","Y"]
["Ipswich",null,null,null,null,null,"SandwichLawerence Pond","Sandwich","Barnstable","Lawerence Pond","Y"]
["Kingston",null,null,null,null,null,"SandwichPeters Pond","Sandwich","Barnstable","Peters Pond","Y"]
["Lakeville",null,null,null,null,null,"SandwichSnake Pond","Sandwich","Barnstable","Snake Pond","Y"]
["Lancaster",null,null,null,null,null,"SandwichSpectacle Pond","Sandwich","Barnstable","Spectacle Pond","Y"]
["Lanesborough",null,null,null,null,null,"SandwichTriangle Pond","Sandwich","Barnstable","Triangle Pond","Y"]
["Lee",null,null,null,null,null,"TruroGreat Pond","Truro","Barnstable","Great Pond","Y"]
["Leicester",null,null,null,null,null,"TruroLong/Horse Leach Pond","Truro","Barnstable","Long/Horse Leach Pond","Y"]
["Leominster",null,null,null,null,null,"TruroPilgrim Lake","Truro","Barnstable","Pilgrim Lake",null,null,"Y"]
["Leverett",null,null,null,null,null,{"$f":"CONCATENATE(H132,J132)","v":"WellfleetDuck Pond"},"Wellfleet","Barnstable","Duck Pond","Y"]
["Lincoln",null,null,null,null,null,"WellfleetGreat Pond","Wellfleet","Barnstable","Great Pond","Y"]
["Littleton",null,null,null,null,null,"WellfleetGull Pond","Wellfleet","Barnstable","Gull Pond","Y"]
["Lunenburg",null,null,null,null,null,"WellfleetHerring Pond","Wellfleet","Barnstable","Herring Pond","Y"]
["Lynn",null,null,null,null,null,"WellfleetHiggins Pond","Wellfleet","Barnstable","Higgins Pond","Y"]
["Lynnfield",null,null,null,null,null,"WellfleetLong Pond","Wellfleet","Barnstable","Long Pond","Y"]
["Marlborough",null,null,null,null,null,"YarmouthBig Sandy Pond","Yarmouth","Barnstable","Big Sandy Pond","Y"]
["Mashpee",null,null,null,null,null,"YarmouthDennis Pond","Yarmouth","Barnstable","Dennis Pond","Y"]
["Maynard",null,null,null,null,null,"YarmouthElishas Pond","Yarmouth","Barnstable","Elishas Pond",null,null,"Y"]
["Medford",null,null,null,null,null,"YarmouthFlax Pond","Yarmouth","Barnstable","Flax Pond","Y"]
["Melrose",null,null,null,null,null,"YarmouthGreenough Pond","Yarmouth","Barnstable","Greenough Pond","Y"]
["Mendon",null,null,null,null,null,"YarmouthHorse Pond","Yarmouth","Barnstable","Horse Pond","Y"]
["Merrimac",null,null,null,null,null,"YarmouthLittle Sandy Pond","Yarmouth","Barnstable","Little Sandy Pond","Y"]
["Methuen",null,null,null,null,null,"YarmouthLong Pond","Yarmouth","Barnstable","Long Pond",null,"Y"]
["Middleborough",null,null,null,null,null,"YarmouthMill Pond (at the Bass River)","Yarmouth","Barnstable","Mill Pond (at the Bass River)",null,null,"Y"]
["Middleton",null,null,null,null,null,"BecketCentre Pond","Becket","Berkshire","Centre Pond",null,"Y"]
["Milford",null,null,null,null,null,"BecketGreenwater Pond","Becket","Berkshire","Greenwater Pond",null,"Y"]
["Millbury",null,null,null,null,null,"BecketHorn Pond","Becket","Berkshire","Horn Pond","Y"]
["Milton",null,null,null,null,null,"BecketRudd Pond","Becket","Berkshire","Rudd Pond",null,"Y"]
["Montague",null,null,null,null,null,"BecketShaw Pond","Becket","Berkshire","Shaw Pond","Y"]
["Monterey",null,null,null,null,null,"BecketYokum Pond","Becket","Berkshire","Yokum Pond",null,"Y"]
["Montgomery",null,null,null,null,null,"EgremontProspect Lake","Egremont","Berkshire","Prospect Lake",null,"Y"]
["Nantucket",null,null,null,null,null,"FloridaNorth Pond","Florida","Berkshire","North Pond","Y"]
["Natick",null,null,null,null,null,"Great BarringtonLong Pond","Great Barrington","Berkshire","Long Pond",null,"Y"]
["Needham",null,null,null,null,null,"Great BarringtonMansfield Pond","Great Barrington","Berkshire","Mansfield Pond","Y"]
["New Bedford",null,null,null,null,null,"LanesboroughPontoosic Lake","Lanesborough","Berkshire","Pontoosic Lake",null,"Y"]
["New Marlborough",null,null,null,null,null,"LeeGoose Pond","Lee","Berkshire","Goose Pond",null,"Y"]
["Newton",null,null,null,null,null,"LeeLaurel Lake","Lee","Berkshire","Laurel Lake",null,"Y"]
["Norfolk",null,null,null,null,null,"MontereyLake Buel","Monterey","Berkshire","Lake Buel","Y"]
["North Andover",null,null,null,null,null,"MontereyLake Garfield","Monterey","Berkshire","Lake Garfield",null,"Y"]
["North Reading",null,null,null,null,null,"New MarlboroughEast/India Pond","New Marlborough","Berkshire","East/India Pond","Y"]
["Northborough",null,null,null,null,null,"New MarlboroughHarmon Pond","New Marlborough","Berkshire","Harmon Pond","Y"]
["Norton",null,null,null,null,null,"New MarlboroughLake Buel","New Marlborough","Berkshire","Lake Buel","Y"]
["Norwell",null,null,null,null,null,"OtisBenton Pond","Otis","Berkshire","Benton Pond","Y"]
["Oak Bluffs",null,null,null,null,null,"OtisBig Pond","Otis","Berkshire","Big Pond",null,"Y"]
["Oakham",null,null,null,null,null,"OtisCreek Pond","Otis","Berkshire","Creek Pond",null,null,"Y"]
["Orange",null,null,null,null,null,"OtisHayes Pond","Otis","Berkshire","Hayes Pond",null,"Y"]
["Orleans",null,null,null,null,null,"OtisLarkum Pond","Otis","Berkshire","Larkum Pond",null,"Y"]
["Otis",null,null,null,null,null,"OtisOtis Reservoir","Otis","Berkshire","Otis Reservoir",null,"Y"]
["Oxford",null,null,null,null,null,"OtisTucker-Haley Pond","Otis","Berkshire","Tucker-Haley Pond","Y"]
["Palmer",null,null,null,null,null,"OtisWhite Lily Pond","Otis","Berkshire","White Lily Pond","Y"]
["Paxton",null,null,null,null,null,"PittsfieldSilver Lake","Pittsfield","Berkshire","Silver Lake","Y"]
["Peabody",null,null,null,null,null,"PittsfieldOnota Lake","Pittsfield","Berkshire","Onota Lake",null,"Y"]
["Pembroke",null,null,null,null,null,"PittsfieldGoodrich Pond/Sylvan Lake","Pittsfield","Berkshire","Goodrich Pond/Sylvan Lake","Y"]
["Pepperell",null,null,null,null,null,"PittsfieldPontoosic Lake","Pittsfield","Berkshire","Pontoosic Lake",null,"Y"]
["Phillipston",null,null,null,null,null,"PittsfieldRichmond Pond","Pittsfield","Berkshire","Richmond Pond",null,"Y"]
["Pittsfield",null,null,null,null,null,"RichmondRichmond Pond","Richmond","Berkshire","Richmond Pond",null,"Y"]
["Plainville",null,null,null,null,null,"SandisfieldSimon Pond/Lake Marguerite","Sandisfield","Berkshire","Simon Pond/Lake Marguerite","Y"]
["Plymouth",null,null,null,null,null,"SavoySouth Pond","Savoy","Berkshire","South Pond","Y"]
["Plympton",null,null,null,null,null,"SheffieldThree-Mile Pond","Sheffield","Berkshire","Three-Mile Pond",null,"Y"]
["Princeton",null,null,null,null,null,"StockbridgeLake Averic","Stockbridge","Berkshire","Lake Averic",null,"Y"]
["Provincetown",null,null,null,null,null,"StockbridgeStockbridge Bowl/Lake Mahkenac","Stockbridge","Berkshire","Stockbridge Bowl/Lake Mahkenac",null,"Y"]
["Randolph",null,null,null,null,null,"TyringhamGoose Pond","Tyringham","Berkshire","Goose Pond",null,"Y"]
["Raynham",null,null,null,null,null,"WashingtonAshley Lake","Washington","Berkshire","Ashley Lake",null,"Y"]
["Richmond",null,null,null,null,null,"WashingtonFinerty Pond","Washington","Berkshire","Finerty Pond",null,"Y"]
["Rochester",null,null,null,null,null,"WashingtonMuddy Pond","Washington","Berkshire","Muddy Pond","Y"]
["Rockland",null,null,null,null,null,"West StockbridgeCranberry Pond","West Stockbridge","Berkshire","Cranberry Pond",null,null,"Y"]
["Rockport",null,null,null,null,null,"West StockbridgeCrane Pond","West Stockbridge","Berkshire","Crane Pond","Y"]
["Royalston",null,null,null,null,null,"West StockbridgeMud Pond","West Stockbridge","Berkshire","Mud Pond",null,null,"Y"]
["Russell",null,null,null,null,null,"West StockbridgeShaker Mill Pond","West Stockbridge","Berkshire","Shaker Mill Pond",null,"Y"]
["Rutland",null,null,null,null,null,"Fall RiverNorth Watuppa Pond","Fall River","Bristol","North Watuppa Pond",null,"Y"]
["Salem",null,null,null,null,null,"Fall RiverSouth Watuppa Pond","Fall River","Bristol","South Watuppa Pond",null,"Y"]
["Sandisfield",null,null,null,null,null,"FreetownLong Pond","Freetown","Bristol","Long Pond","Y"]
["Sandwich",null,null,null,null,null,"New BedfordSassaquin Pond","New Bedford","Bristol","Sassaquin Pond","Y"]
["Savoy",null,null,null,null,null,{"$f":"CONCATENATE(H196,J196)","v":"NortonWinneconnet Lake"},"Norton","Bristol","Winneconnet Lake","Y"]
["Scituate",null,null,null,null,null,"RaynhamGushee Pond","Raynham","Bristol","Gushee Pond","Y"]
["Sharon",null,null,null,null,null,"RaynhamJohnsons Pond","Raynham","Bristol","Johnsons Pond",null,null,"Y"]
["Sheffield",null,null,null,null,null,"RaynhamProspect Hill Pond","Raynham","Bristol","Prospect Hill Pond","Y"]
["Sherborn",null,null,null,null,null,{"$f":"CONCATENATE(H200,J200)","v":"TauntonLake Sabatia"},"Taunton","Bristol","Lake Sabatia",null,"Y"]
["Shrewsbury",null,null,null,null,null,"TauntonProspect Hill Pond","Taunton","Bristol","Prospect Hill Pond","Y"]
["Shutesbury",null,null,null,null,null,"TauntonWatsons Pond","Taunton","Bristol","Watsons Pond",null,"Y"]
["Southampton",null,null,null,null,null,"WestportCockeast Pond/Davol Pond","Westport","Bristol","Cockeast Pond/Davol Pond",null,null,"Y"]
["Southwick",null,null,null,null,null,"WestportDevol Pond","Westport","Bristol","Devol Pond","Y"]
["Spencer",null,null,null,null,null,"WestportNorth Watuppa Pond","Westport","Bristol","North Watuppa Pond",null,"Y"]
["Springfield",null,null,null,null,null,"WestportSawdy Pond","Westport","Bristol","Sawdy Pond",null,"Y"]
["Sterling",null,null,null,null,null,"WestportSouth Watuppa Pond","Westport","Bristol","South Watuppa Pond",null,"Y"]
["Stockbridge",null,null,null,null,null,"ChilmarkBlackpoint Pond","Chilmark","Dukes","Blackpoint Pond","Y"]
["Stoneham",null,null,null,null,null,"ChilmarkChilmark Pond","Chilmark","Dukes","Chilmark Pond","Y"]
["Stow",null,null,null,null,null,"ChilmarkSquibnocket Pond","Chilmark","Dukes","Squibnocket Pond","Y"]
["Sturbridge",null,null,null,null,null,"ChilmarkTisbury Great Pond","Chilmark","Dukes","Tisbury Great Pond",null,null,"Y"]
["Sudbury",null,null,null,null,null,"EdgartownHerring/Edgartown Great Pond","Edgartown","Dukes","Herring/Edgartown Great Pond","Y"]
["Sunderland",null,null,null,null,null,"EdgartownJobs Neck Pond","Edgartown","Dukes","Jobs Neck Pond","Y"]
["Sutton",null,null,null,null,null,"EdgartownOyster Pond","Edgartown","Dukes","Oyster Pond","Y"]
["Taunton",null,null,null,null,null,"EdgartownPaqua Pond","Edgartown","Dukes","Paqua Pond","Y"]
["Tewksbury",null,null,null,null,null,"EdgartownTrapps Pond","Edgartown","Dukes","Trapps Pond","Y"]
["Tolland",null,null,null,null,null,"Gay HeadSquibnocket Pond","Gay Head","Dukes","Squibnocket Pond","Y"]
["Topsfield",null,null,null,null,null,"GosnoldQuicks Hole Pond on Nashawena Island","Gosnold","Dukes","Quicks Hole Pond on Nashawena Island","Y"]
["Townsend",null,null,null,null,null,"GosnoldWestend Pond on Naushon Island","Gosnold","Dukes","Westend Pond on Naushon Island","Y"]
["Truro",null,null,null,null,null,"Oak BluffsCrystal Lake","Oak Bluffs","Dukes","Crystal Lake","Y"]
["Tyngsborough",null,null,null,null,null,"Oak BluffsFarm Pond","Oak Bluffs","Dukes","Farm Pond","Y"]
["Tyringham",null,null,null,null,null,"Oak BluffsLake Anthony/Oak Bluffs Harbor","Oak Bluffs","Dukes","Lake Anthony/Oak Bluffs Harbor",null,null,"Y"]
["Upton",null,null,null,null,null,"West TisburyHomer Pond","West Tisbury","Dukes","Homer Pond","Y"]
["Wakefield",null,null,null,null,null,"West TisburyJames Pond","West Tisbury","Dukes","James Pond","Y"]
["Wales",null,null,null,null,null,"West TisburyLong Pond/Long Cove","West Tisbury","Dukes","Long Pond/Long Cove","Y"]
["Waltham",null,null,null,null,null,"West TisburyTisbury Great Pond","West Tisbury","Dukes","Tisbury Great Pond",null,null,"Y"]
["Wareham",null,null,null,null,null,"West TisburyWatcha Pond","West Tisbury","Dukes","Watcha Pond","Y"]
["Warwick",null,null,null,null,null,"AmesburyLake Attitash","Amesbury","Essex","Lake Attitash",null,"Y"]
["Washington",null,null,null,null,null,"AndoverBallards Pond","Andover","Essex","Ballards Pond",null,null,"Y"]
["Wayland",null,null,null,null,null,"AndoverFosters Pond","Andover","Essex","Fosters Pond",null,"Y"]
["Webster",null,null,null,null,null,"AndoverHaggetts Pond","Andover","Essex","Haggetts Pond",null,"Y"]
["Wellesley",null,null,null,null,null,{"$f":"CONCATENATE(H232,J232)","v":"BeverlyBeaver Pond"},"Beverly","Essex","Beaver Pond","Y"]
["Wellfleet",null,null,null,null,null,"BeverlyWenham Lake","Beverly","Essex","Wenham Lake",null,"Y"]
["Wenham",null,null,null,null,null,"BoxfordBald Plate Pond","Boxford","Essex","Bald Plate Pond","Y"]
["West Brookfield",null,null,null,null,null,"BoxfordChadwick Pond","Boxford","Essex","Chadwick Pond",null,"Y"]
["West Stockbridge",null,null,null,null,null,"BoxfordFour-Mile Pond","Boxford","Essex","Four-Mile Pond","Y"]
["West Tisbury",null,null,null,null,null,"BoxfordHovey's Pond","Boxford","Essex","Hovey's Pond","Y"]
["Westborough",null,null,null,null,null,"BoxfordJohnson's Pond","Boxford","Essex","Johnson's Pond",null,null,"Y"]
["Westfield",null,null,null,null,null,"BoxfordSperry Pond","Boxford","Essex","Sperry Pond",null,null,"Y"]
["Westford",null,null,null,null,null,"BoxfordSpofford pond","Boxford","Essex","Spofford pond","Y"]
["Westminster",null,null,null,null,null,"BoxfordStevens Pond","Boxford","Essex","Stevens Pond","Y"]
["Weston",null,null,null,null,null,"BoxfordStiles Pond","Boxford","Essex","Stiles Pond",null,"Y"]
["Westport",null,null,null,null,null,"EssexChebacco Lake","Essex","Essex","Chebacco Lake","Y"]
["Weymouth",null,null,null,null,null,"GeorgetownPentucket Pond","Georgetown","Essex","Pentucket Pond",null,"Y"]
["Wilbraham",null,null,null,null,null,"GeorgetownRock Pond","Georgetown","Essex","Rock Pond","Y"]
["Wilmington",null,null,null,null,null,"GloucesterNiles Pond","Gloucester","Essex","Niles Pond","Y"]
["Winchendon",null,null,null,null,null,"GrovelandJohnson's Pond","Groveland","Essex","Johnson's Pond",null,"Y"]
["Winchester",null,null,null,null,null,"HamiltonBeck Pond","Hamilton","Essex","Beck Pond","Y"]
["Woburn",null,null,null,null,null,"HamiltonChebacco Lake","Hamilton","Essex","Chebacco Lake","Y"]
["Worcester",null,null,null,null,null,"HamiltonGravelly Pond","Hamilton","Essex","Gravelly Pond","Y"]
["Wrentham",null,null,null,null,null,"HamiltonRound Pond","Hamilton","Essex","Round Pond","Y"]
["Yarmouth",null,null,null,null,null,"HaverhillChadwick Pond","Haverhill","Essex","Chadwick Pond",null,"Y"]
[null,null,null,null,null,null,"HaverhillKenoza/Great Pond","Haverhill","Essex","Kenoza/Great Pond","Y"]
[null,null,null,null,null,null,"HaverhillSattonstait/Ayers Pond","Haverhill","Essex","Sattonstait/Ayers Pond",null,"Y"]
[null,null,null,null,null,null,"HaverhillPentucket/Little Pond","Haverhill","Essex","Pentucket/Little Pond","Y"]
[null,null,null,null,null,null,"HaverhillNeal Pond","Haverhill","Essex","Neal Pond",null,null,"Y"]
[null,null,null,null,null,null,"IpswichHood Pond","Ipswich","Essex","Hood Pond","Y"]
[null,null,null,null,null,null,"LynnCedar Pond","Lynn","Essex","Cedar Pond",null,null,"Y"]
[null,null,null,null,null,null,{"$f":"CONCATENATE(H259,J259)","v":"LynnFlax Pond"},"Lynn","Essex","Flax Pond","Y"]
[null,null,null,null,null,null,"LynnSpring Pond","Lynn","Essex","Spring Pond",null,"Y"]
[null,null,null,null,null,null,"LynnfieldSuntaug Lake","Lynnfield","Essex","Suntaug Lake","Y"]
[null,null,null,null,null,null,"MerrimacLake Attitash","Merrimac","Essex","Lake Attitash",null,"Y"]
[null,null,null,null,null,null,"MerrimacNeal Pond","Merrimac","Essex","Neal Pond",null,null,"Y"]
[null,null,null,null,null,null,"MethuenForest Lake","Methuen","Essex","Forest Lake","Y"]
[null,null,null,null,null,null,"MethuenMystic Pond","Methuen","Essex","Mystic Pond","Y"]
[null,null,null,null,null,null,"MiddletonMiddleton Pond","Middleton","Essex","Middleton Pond",null,"Y"]
[null,null,null,null,null,null,"North AndoverLake Cochichewick","North Andover","Essex","Lake Cochichewick",null,"Y"]
[null,null,null,null,null,null,"PeabodyBrowns Pond","Peabody","Essex","Browns Pond",null,"Y"]
[null,null,null,null,null,null,"PeabodyCedar Pond","Peabody","Essex","Cedar Pond","Y"]
[null,null,null,null,null,null,"PeabodySpring Pond","Peabody","Essex","Spring Pond",null,"Y"]
[null,null,null,null,null,null,"PeabodySuntaug Lake","Peabody","Essex","Suntaug Lake","Y"]
[null,null,null,null,null,null,"RockportCape Pond","Rockport","Essex","Cape Pond","Y"]
[null,null,null,null,null,null,"SalemSpring Pond","Salem","Essex","Spring Pond",null,"Y"]
[null,null,null,null,null,null,"TopsfieldHood Pond","Topsfield","Essex","Hood Pond","Y"]
[null,null,null,null,null,null,"WenhamCoy Pond","Wenham","Essex","Coy Pond","Y"]
[null,null,null,null,null,null,"WenhamPleasant Pond","Wenham","Essex","Pleasant Pond","Y"]
[null,null,null,null,null,null,"WenhamWenham Pond","Wenham","Essex","Wenham Pond",null,"Y"]
[null,null,null,null,null,null,"AshfieldGreat Lake/Ashfield Lake","Ashfield","Franklin","Great Lake/Ashfield Lake",null,null,"Y"]
[null,null,null,null,null,null,"ErvingLaurel Lake","Erving","Franklin","Laurel Lake",null,"Y"]
[null,null,null,null,null,null,"LeverettEcho Lake/Leverett Pond","Leverett","Franklin","Echo Lake/Leverett Pond",null,"Y"]
[null,null,null,null,null,null,"MontagueGreen Pond","Montague","Franklin","Green Pond","Y"]
[null,null,null,null,null,null,"MontagueLake Pleasant/Great Pond","Montague","Franklin","Lake Pleasant/Great Pond",null,"Y"]
[null,null,null,null,null,null,"OrangeLake Mattawa","Orange","Franklin","Lake Mattawa",null,"Y"]
[null,null,null,null,null,null,"OrangeLake Rohunta","Orange","Franklin","Lake Rohunta",null,null,"Y"]
[null,null,null,null,null,null,"ShutesburyLake Wyola","Shutesbury","Franklin","Lake Wyola",null,"Y"]
[null,null,null,null,null,null,"SunderlandCranberry Pond","Sunderland","Franklin","Cranberry Pond",null,"Y"]
[null,null,null,null,null,null,"WarwickHastings Pond","Warwick","Franklin","Hastings Pond",null,"Y"]
[null,null,null,null,null,null,"WarwickLaurel Lake","Warwick","Franklin","Laurel Lake",null,"Y"]
[null,null,null,null,null,null,"BlandfordBeaver Pond   ","Blandford","Hampden","Beaver Pond   ",null,null,"Y"]
[null,null,null,null,null,null,"BlandfordLong Pond   ","Blandford","Hampden","Long Pond   ",null,"Y"]
[null,null,null,null,null,null,"BrimfieldLittle Alum Pond  ","Brimfield","Hampden","Little Alum Pond  ",null,"Y"]
[null,null,null,null,null,null,"BrimfieldSherman Lake   ","Brimfield","Hampden","Sherman Lake   ",null,"Y"]
[null,null,null,null,null,null,"HollandHolland Pond   ","Holland","Hampden","Holland Pond   ","Y"]
[null,null,null,null,null,null,"MontgomeryShatterack Pond  ","Montgomery","Hampden","Shatterack Pond  ",null,null,"Y"]
[null,null,null,null,null,null,"PalmerBrown's Pond","Palmer","Hampden","Brown's Pond",null,null,"Y"]
[null,null,null,null,null,null,"PalmerForest Lake","Palmer","Hampden","Forest Lake",null,"Y"]
[null,null,null,null,null,null,"RussellRussell Pond","Russell","Hampden","Russell Pond",null,"Y"]
[null,null,null,null,null,null,"SouthwickCongamond Lake","Southwick","Hampden","Congamond Lake",null,"Y"]
[null,null,null,null,null,null,"SpringfieldFive-Mile Pond","Springfield","Hampden","Five-Mile Pond","Y"]
[null,null,null,null,null,null,"SpringfieldLoon Pond","Springfield","Hampden","Loon Pond","Y"]
[null,null,null,null,null,null,"TollandHall Pond","Tolland","Hampden","Hall Pond",null,null,"Y"]
[null,null,null,null,null,null,"TollandNoyes Pond","Tolland","Hampden","Noyes Pond",null,"Y"]
[null,null,null,null,null,null,"TollandOtis Reservoir","Tolland","Hampden","Otis Reservoir",null,"Y"]
[null,null,null,null,null,null,"WilbrahamNine Mile Pond","Wilbraham","Hampden","Nine Mile Pond","Y"]
[null,null,null,null,null,null,"WilbrahamSpectacle Pond","Wilbraham","Hampden","Spectacle Pond","Y"]
[null,null,null,null,null,null,"WalesLake George","Wales","Hampden","Lake George",null,"Y"]
[null,null,null,null,null,null,"WestfieldPequot Pond","Westfield","Hampden","Pequot Pond",null,"Y"]
[null,null,null,null,null,null,"WestfieldHorse Pond","Westfield","Hampden","Horse Pond",null,"Y"]
[null,null,null,null,null,null,"WestfieldBuck Pond","Westfield","Hampden","Buck Pond","Y"]
[null,null,null,null,null,null,"BelchertownLake Arcadia","Belchertown","Hampshire","Lake Arcadia","Y"]
[null,null,null,null,null,null,"BelchertownLake Holland","Belchertown","Hampshire","Lake Holland","Y"]
[null,null,null,null,null,null,"BelchertownLake Metacomet","Belchertown","Hampshire","Lake Metacomet","Y"]
[null,null,null,null,null,null,"HadleyLake Warner","Hadley","Hampshire","Lake Warner",null,null,"Y"]
[null,null,null,null,null,null,"HuntingtonNorwich Pond","Huntington","Hampshire","Norwich Pond",null,"Y"]
[null,null,null,null,null,null,"SouthamptonPequot Pond","Southampton","Hampshire","Pequot Pond",null,"Y"]
[null,null,null,null,null,null,"ActonGrassy Pond","Acton","Middlesex","Grassy Pond","Y"]
[null,null,null,null,null,null,"ActonNagog Pond","Acton","Middlesex","Nagog Pond",null,"Y"]
[null,null,null,null,null,null,"ArlingtonFresh Pond","Arlington","Middlesex","Fresh Pond",null,null,"Y"]
[null,null,null,null,null,null,"ArlingtonSpy Pond","Arlington","Middlesex","Spy Pond","Y"]
[null,null,null,null,null,null,"AshlandShakum Pond/Waushakum Pond","Ashland","Middlesex","Shakum Pond/Waushakum Pond","Y"]
[null,null,null,null,null,null,"AyerLong Pond","Ayer","Middlesex","Long Pond",null,"Y"]
[null,null,null,null,null,null,"AyerSand Pond","Ayer","Middlesex","Sand Pond",null,"Y"]
[null,null,null,null,null,null,{"$f":"CONCATENATE(H323,J323)","v":"BelmontLittle Pond"},"Belmont","Middlesex","Little Pond","Y"]
[null,null,null,null,null,null,"BillericaNuttings Pond","Billerica","Middlesex","Nuttings Pond","Y"]
[null,null,null,null,null,null,"BillericaWinning Pond","Billerica","Middlesex","Winning Pond",null,"Y"]
[null,null,null,null,null,null,"BoxboroughMuddy Pond","Boxborough","Middlesex","Muddy Pond",null,null,"Y"]
[null,null,null,null,null,null,"CambridgeFresh Pond","Cambridge","Middlesex","Fresh Pond","Y"]
[null,null,null,null,null,null,"ChelmsfordHeart's/Baptist Pond","Chelmsford","Middlesex","Heart's/Baptist Pond",null,"Y"]
[null,null,null,null,null,null,"ConcordBateman's Pond","Concord","Middlesex","Bateman's Pond","Y"]
[null,null,null,null,null,null,"ConcordWalden Pond","Concord","Middlesex","Walden Pond","Y"]
[null,null,null,null,null,null,"ConcordWhite Pond","Concord","Middlesex","White Pond","Y"]
[null,null,null,null,null,null,"DracutPeter's Pond","Dracut","Middlesex","Peter's Pond","Y"]
[null,null,null,null,null,null,"DracutLong Pond","Dracut","Middlesex","Long Pond","Y"]
[null,null,null,null,null,null,"DunstableMassapoag Pond","Dunstable","Middlesex","Massapoag Pond",null,"Y"]
[null,null,null,null,null,null,"FraminghamFarm Pond","Framingham","Middlesex","Farm Pond","Y"]
[null,null,null,null,null,null,"FraminghamGleason Pond","Framingham","Middlesex","Gleason Pond","Y"]
[null,null,null,null,null,null,"FraminghamLake Cochituate","Framingham","Middlesex","Lake Cochituate",null,"Y"]
[null,null,null,null,null,null,"FraminghamLearned Pond","Framingham","Middlesex","Learned Pond","Y"]
[null,null,null,null,null,null,"FraminghamWaushakum/Shakum Pond","Framingham","Middlesex","Waushakum/Shakum Pond","Y"]
[null,null,null,null,null,null,"GrotonBaddacook Pond","Groton","Middlesex","Baddacook Pond","Y"]
[null,null,null,null,null,null,"GrotonCow Pond","Groton","Middlesex","Cow Pond","Y"]
[null,null,null,null,null,null,"GrotonKnopps/Last Lake","Groton","Middlesex","Knopps/Last Lake",null,"Y"]
[null,null,null,null,null,null,"GrotonMartins Pond","Groton","Middlesex","Martins Pond","Y"]
[null,null,null,null,null,null,"GrotonMassapoag Pond","Groton","Middlesex","Massapoag Pond",null,null,"Y"]
[null,null,null,null,null,null,"HollistonLake Winthrop","Holliston","Middlesex","Lake Winthrop",null,"Y"]
[null,null,null,null,null,null,{"$f":"CONCATENATE(H346,J346)","v":"HopkintonLake Maspenock/North Pond"},"Hopkinton","Middlesex","Lake Maspenock/North Pond",null,"Y"]
[null,null,null,null,null,null,"HopkintonWhite Hall Reservoir","Hopkinton","Middlesex","White Hall Reservoir",null,"Y"]
[null,null,null,null,null,null,"HudsonBoons Pond/Lake Boon","Hudson","Middlesex","Boons Pond/Lake Boon",null,"Y"]
[null,null,null,null,null,null,"HudsonWhite Pond","Hudson","Middlesex","White Pond","Y"]
[null,null,null,null,null,null,"LincolnBeaver Pond","Lincoln","Middlesex","Beaver Pond","Y"]
[null,null,null,null,null,null,"LincolnSandy Pond Reservoir","Lincoln","Middlesex","Sandy Pond Reservoir","Y"]
[null,null,null,null,null,null,"LittletonFort Pond","Littleton","Middlesex","Fort Pond","Y"]
[null,null,null,null,null,null,"LittletonLong Pond","Littleton","Middlesex","Long Pond","Y"]
[null,null,null,null,null,null,"LittletonLake Matawanakae/Forge Pond","Littleton","Middlesex","Lake Matawanakae/Forge Pond",null,"Y"]
[null,null,null,null,null,null,"LittletonNagog Pond","Littleton","Middlesex","Nagog Pond",null,"Y"]
[null,null,null,null,null,null,"LittletonSpectacle Pond","Littleton","Middlesex","Spectacle Pond","Y"]
[null,null,null,null,null,null,"MarlboroughLake Williams","Marlborough","Middlesex","Lake Williams",null,"Y"]
[null,null,null,null,null,null,"MaynardPuffers Pond","Maynard","Middlesex","Puffers Pond","Y"]
[null,null,null,null,null,null,"MedfordLower Mystic Lake","Medford","Middlesex","Lower Mystic Lake","Y"]
[null,null,null,null,null,null,"MedfordUpper Mystic Lake","Medford","Middlesex","Upper Mystic Lake",null,"Y"]
[null,null,null,null,null,null,"MelroseCrystal/Ell Pond","Melrose","Middlesex","Crystal/Ell Pond","Y"]
[null,null,null,null,null,null,"NatickDug Pond","Natick","Middlesex","Dug Pond","Y"]
[null,null,null,null,null,null,"NatickLake Cochituate","Natick","Middlesex","Lake Cochituate",null,"Y"]
[null,null,null,null,null,null,"NatickNonesuch Pond","Natick","Middlesex","Nonesuch Pond","Y"]
[null,null,null,null,null,null,"NewtonCrystal Lake","Newton","Middlesex","Crystal Lake","Y"]
[null,null,null,null,null,null,"NewtonHammonds Pond","Newton","Middlesex","Hammonds Pond","Y"]
[null,null,null,null,null,null,"North ReadingMartins Pond","North Reading","Middlesex","Martins Pond","Y"]
[null,null,null,null,null,null,"North ReadingSwan Pond","North Reading","Middlesex","Swan Pond",null,null,"Y"]
[null,null,null,null,null,null,"PepperellBlood Pond/Heald Pond","Pepperell","Middlesex","Blood Pond/Heald Pond",null,"Y"]
[null,null,null,null,null,null,"SherbornFarm Pond","Sherborn","Middlesex","Farm Pond","Y"]
[null,null,null,null,null,null,"SherbornLittle Pond","Sherborn","Middlesex","Little Pond","Y"]
[null,null,null,null,null,null,"StonehamCrystal Lake","Stoneham","Middlesex","Crystal Lake","Y"]
[null,null,null,null,null,null,"StonehamSpot Pond","Stoneham","Middlesex","Spot Pond",null,"Y"]
[null,null,null,null,null,null,"StowLake Boon/Boon Pond","Stow","Middlesex","Lake Boon/Boon Pond",null,"Y"]
[null,null,null,null,null,null,"StowWhite Pond","Stow","Middlesex","White Pond","Y"]
[null,null,null,null,null,null,"SudburyWillis Pond","Sudbury","Middlesex","Willis Pond",null,"Y"]
[null,null,null,null,null,null,"TewksburyLong Pond","Tewksbury","Middlesex","Long Pond","Y"]
[null,null,null,null,null,null,"TewksburyRound Pond","Tewksbury","Middlesex","Round Pond","Y"]
[null,null,null,null,null,null,"TownsendVinton Pond","Townsend","Middlesex","Vinton Pond",null,null,"Y"]
[null,null,null,null,null,null,"TyngsboroughMassapoag Pond","Tyngsborough","Middlesex","Massapoag Pond",null,"Y"]
[null,null,null,null,null,null,"WakefieldCrystal Lake","Wakefield","Middlesex","Crystal Lake","Y"]
[null,null,null,null,null,null,"WakefieldLake Quannapowitt","Wakefield","Middlesex","Lake Quannapowitt",null,"Y"]
[null,null,null,null,null,null,"WalthamSherman Pond/Hardy Pond","Waltham","Middlesex","Sherman Pond/Hardy Pond","Y"]
[null,null,null,null,null,null,"WaylandDudley Pond","Wayland","Middlesex","Dudley Pond","Y"]
[null,null,null,null,null,null,"WaylandHeards Pond","Wayland","Middlesex","Heards Pond","Y"]
[null,null,null,null,null,null,{"$f":"CONCATENATE(H386,J386)","v":"WestfordBurgess Pond"},"Westford","Middlesex","Burgess Pond","Y"]
[null,null,null,null,null,null,"WestfordFlushing Pond","Westford","Middlesex","Flushing Pond","Y"]
[null,null,null,null,null,null,"WestfordForge Pond/Lake Matawanakae","Westford","Middlesex","Forge Pond/Lake Matawanakae",null,"Y"]
[null,null,null,null,null,null,"WestfordGrass Pond","Westford","Middlesex","Grass Pond",null,null,"Y"]
[null,null,null,null,null,null,"WestfordHeart Pond","Westford","Middlesex","Heart Pond",null,null,"Y"]
[null,null,null,null,null,null,"WestfordKeyes Pond","Westford","Middlesex","Keyes Pond","Y"]
[null,null,null,null,null,null,"WestfordLong Sought For Pond","Westford","Middlesex","Long Sought For Pond","Y"]
[null,null,null,null,null,null,"WestfordNabnassett Lake","Westford","Middlesex","Nabnassett Lake",null,"Y"]
[null,null,null,null,null,null,"WestonNonesuch Pond","Weston","Middlesex","Nonesuch Pond","Y"]
[null,null,null,null,null,null,"WilmingtonSilver Lake","Wilmington","Middlesex","Silver Lake","Y"]
[null,null,null,null,null,null,"WinchesterMystic Pond","Winchester","Middlesex","Mystic Pond",null,null,"Y"]
[null,null,null,null,null,null,"WinchesterWedge Pond","Winchester","Middlesex","Wedge Pond",null,"Y"]
[null,null,null,null,null,null,"WinchesterWinter Pond","Winchester","Middlesex","Winter Pond","Y"]
[null,null,null,null,null,null,"WoburnHorn Pond","Woburn","Middlesex","Horn Pond",null,"Y"]
[null,null,null,null,null,null,"NantucketCoskata Pond","Nantucket","Nantucket","Coskata Pond","Y"]
[null,null,null,null,null,null,"NantucketGibbs Pond","Nantucket","Nantucket","Gibbs Pond","Y"]
[null,null,null,null,null,null,"NantucketHummock Pond","Nantucket","Nantucket","Hummock Pond","Y"]
[null,null,null,null,null,null,"NantucketLong Pond","Nantucket","Nantucket","Long Pond","Y"]
[null,null,null,null,null,null,"NantucketMiacomet Pond","Nantucket","Nantucket","Miacomet Pond","Y"]
[null,null,null,null,null,null,"NantucketSesachacha Pond","Nantucket","Nantucket","Sesachacha Pond","Y"]
[null,null,null,null,null,null,"NantucketTom Nevers Pond","Nantucket","Nantucket","Tom Nevers Pond","Y"]
[null,null,null,null,null,null,"BellinghamBeaver Pond","Bellingham","Norfolk","Beaver Pond",null,"Y"]
[null,null,null,null,null,null,"BraintreeGreat Pond","Braintree","Norfolk","Great Pond",null,"Y"]
[null,null,null,null,null,null,"BraintreeSunset Lake/Little Pond","Braintree","Norfolk","Sunset Lake/Little Pond",null,"Y"]
[null,null,null,null,null,null,"BraintreeCranberry Pond","Braintree","Norfolk","Cranberry Pond",null,null,"Y"]
[null,null,null,null,null,null,"CantonPonkapoag Pond","Canton","Norfolk","Ponkapoag Pond",null,"Y"]
[null,null,null,null,null,null,"CantonReservoir Pond","Canton","Norfolk","Reservoir Pond",null,null,"Y"]
[null,null,null,null,null,null,"CantonBolivar Pond","Canton","Norfolk","Bolivar Pond",null,"Y"]
[null,null,null,null,null,null,"CohassettLily Pond","Cohassett","Norfolk","Lily Pond","Y"]
[null,null,null,null,null,null,"DedhamWigwam Pond","Dedham","Norfolk","Wigwam Pond","Y"]
[null,null,null,null,null,null,"FoxboroughLake Mirimichi","Foxborough","Norfolk","Lake Mirimichi",null,"Y"]
[null,null,null,null,null,null,"FranklinPopulatic Pond","Franklin","Norfolk","Populatic Pond","Y"]
[null,null,null,null,null,null,"FranklinBeaver Pond","Franklin","Norfolk","Beaver Pond",null,"Y"]
[null,null,null,null,null,null,"FranklinUncas Pond","Franklin","Norfolk","Uncas Pond","Y"]
[null,null,null,null,null,null,"MiltonHoughton Pond","Milton","Norfolk","Houghton Pond",null,null,"Y"]
[null,null,null,null,null,null,"NeedhamBullards Pond","Needham","Norfolk","Bullards Pond",null,"Y"]
[null,null,null,null,null,null,"NorfolkKingsbury Pond","Norfolk","Norfolk","Kingsbury Pond","Y"]
[null,null,null,null,null,null,"NorfolkPopulatic Pond","Norfolk","Norfolk","Populatic Pond","Y"]
[null,null,null,null,null,null,"PlainvilleLake Mirimichi","Plainville","Norfolk","Lake Mirimichi",null,"Y"]
[null,null,null,null,null,null,"RandolphGreat Pond","Randolph","Norfolk","Great Pond",null,"Y"]
[null,null,null,null,null,null,"RandolphPonkapoag Pond","Randolph","Norfolk","Ponkapoag Pond",null,"Y"]
[null,null,null,null,null,null,"SharonMassapoag Lake","Sharon","Norfolk","Massapoag Lake",null,"Y"]
[null,null,null,null,null,null,"SharonBillings Pond","Sharon","Norfolk","Billings Pond",null,null,"Y"]
[null,null,null,null,null,null,"WellesleyLake Waban","Wellesley","Norfolk","Lake Waban",null,"Y"]
[null,null,null,null,null,null,"WeymouthWeymouth Great Pond","Weymouth","Norfolk","Weymouth Great Pond",null,"Y"]
[null,null,null,null,null,null,"WeymouthWhitman's Pond","Weymouth","Norfolk","Whitman's Pond",null,"Y"]
[null,null,null,null,null,null,"WrenthamLake Pearl","Wrentham","Norfolk","Lake Pearl",null,"Y"]
[null,null,null,null,null,null,"WrenthamLake Archer","Wrentham","Norfolk","Lake Archer","Y"]
[null,null,null,null,null,null,"AbingtonIsland Grove Pond","Abington","Plymouth","Island Grove Pond",null,"Y"]
[null,null,null,null,null,null,"BridgewaterNippenickett Pond","Bridgewater","Plymouth","Nippenickett Pond","Y"]
[null,null,null,null,null,null,"BridgewaterNunkets Pond","Bridgewater","Plymouth","Nunkets Pond","Y"]
[null,null,null,null,null,null,"CarverBates Pond","Carver","Plymouth","Bates Pond","Y"]
[null,null,null,null,null,null,"CarverCoopers Pond","Carver","Plymouth","Coopers Pond","Y"]
[null,null,null,null,null,null,"CarverDunham Pond","Carver","Plymouth","Dunham Pond","Y"]
[null,null,null,null,null,null,"CarverJohn's Pond","Carver","Plymouth","John's Pond","Y"]
[null,null,null,null,null,null,"CarverSampson's Pond","Carver","Plymouth","Sampson's Pond","Y"]
[null,null,null,null,null,null,"CarverVaughn's Pond","Carver","Plymouth","Vaughn's Pond",null,"Y"]
[null,null,null,null,null,null,"CarverWenham Pond","Carver","Plymouth","Wenham Pond",null,"Y"]
[null,null,null,null,null,null,"DuxburyIsland Creek Pond","Duxbury","Plymouth","Island Creek Pond","Y"]
[null,null,null,null,null,null,"East BridgewaterRobbins Pond","East Bridgewater","Plymouth","Robbins Pond",null,"Y"]
[null,null,null,null,null,null,"HalifaxMonponsett Pond","Halifax","Plymouth","Monponsett Pond","Y"]
[null,null,null,null,null,null,"HansonIndian Head Pond","Hanson","Plymouth","Indian Head Pond","Y"]
[null,null,null,null,null,null,"HansonMaquan Pond","Hanson","Plymouth","Maquan Pond","Y"]
[null,null,null,null,null,null,"HansonOldham Pond","Hanson","Plymouth","Oldham Pond","Y"]
[null,null,null,null,null,null,{"$f":"CONCATENATE(H450,J450)","v":"HinghamAccord Pond"},"Hingham","Plymouth","Accord Pond",null,"Y"]
[null,null,null,null,null,null,"KingstonIndian Pond","Kingston","Plymouth","Indian Pond","Y"]
[null,null,null,null,null,null,"KingstonSilver Lake","Kingston","Plymouth","Silver Lake","Y"]
[null,null,null,null,null,null,"KingstonSmelt Pond","Kingston","Plymouth","Smelt Pond","Y"]
[null,null,null,null,null,null,"LakevilleAssawompsett Pond","Lakeville","Plymouth","Assawompsett Pond",null,"Y"]
[null,null,null,null,null,null,"LakevilleClear Pond","Lakeville","Plymouth","Clear Pond","Y"]
[null,null,null,null,null,null,"LakevilleDunham Pond","Lakeville","Plymouth","Dunham Pond",null,null,"Y"]
[null,null,null,null,null,null,"LakevilleElders Pond","Lakeville","Plymouth","Elders Pond","Y"]
[null,null,null,null,null,null,"LakevilleGreat Quittacas Pond","Lakeville","Plymouth","Great Quittacas Pond","Y"]
[null,null,null,null,null,null,"LakevilleLittle Quitticas Pond","Lakeville","Plymouth","Little Quitticas Pond","Y"]
[null,null,null,null,null,null,"LakevilleLong Pond","Lakeville","Plymouth","Long Pond",null,null,"Y"]
[null,null,null,null,null,null,"LakevilleLoon Pond","Lakeville","Plymouth","Loon Pond","Y"]
[null,null,null,null,null,null,"LakevillePocksha Pond","Lakeville","Plymouth","Pocksha Pond","Y"]
[null,null,null,null,null,null,"MiddleboroughAssawompsett Pond","Middleborough","Plymouth","Assawompsett Pond",null,"Y"]
[null,null,null,null,null,null,"MiddleboroughGreat Quittacas Pond","Middleborough","Plymouth","Great Quittacas Pond",null,"Y"]
[null,null,null,null,null,null,"MiddleboroughPocksha Pond","Middleborough","Plymouth","Pocksha Pond","Y"]
[null,null,null,null,null,null,"MiddleboroughTispaquin Pond","Middleborough","Plymouth","Tispaquin Pond","Y"]
[null,null,null,null,null,null,"MiddleboroughWoods Pond","Middleborough","Plymouth","Woods Pond","Y"]
[null,null,null,null,null,null,"NorwellAccord Pond","Norwell","Plymouth","Accord Pond",null,"Y"]
[null,null,null,null,null,null,"PembrokeFurnace Pond","Pembroke","Plymouth","Furnace Pond","Y"]
[null,null,null,null,null,null,"PembrokeGreat Sandy Pond","Pembroke","Plymouth","Great Sandy Pond","Y"]
[null,null,null,null,null,null,"PembrokeLittle Sandy Bottom Pond","Pembroke","Plymouth","Little Sandy Bottom Pond","Y"]
[null,null,null,null,null,null,"PembrokeOldham Pond","Pembroke","Plymouth","Oldham Pond","Y"]
[null,null,null,null,null,null,"PembrokeSilver Lake","Pembroke","Plymouth","Silver Lake","Y"]
[null,null,null,null,null,null,"PembrokeStetson Pond","Pembroke","Plymouth","Stetson Pond","Y"]
[null,null,null,null,null,null,"PlymouthBig Sandy Pond","Plymouth","Plymouth","Big Sandy Pond",null,null,"Y"]
[null,null,null,null,null,null,"PlymouthBillington Sea","Plymouth","Plymouth","Billington Sea",null,"Y"]
[null,null,null,null,null,null,"PlymouthBig West Pond","Plymouth","Plymouth","Big West Pond","Y"]
[null,null,null,null,null,null,"PlymouthBoot Pond","Plymouth","Plymouth","Boot Pond","Y"]
[null,null,null,null,null,null,"PlymouthCollege Pond","Plymouth","Plymouth","College Pond","Y"]
[null,null,null,null,null,null,"PlymouthDarby Pond","Plymouth","Plymouth","Darby Pond",null,"Y"]
[null,null,null,null,null,null,"PlymouthFive-Mile Pond","Plymouth","Plymouth","Five-Mile Pond",null,"Y"]
[null,null,null,null,null,null,"PlymouthGreat Herring Pond","Plymouth","Plymouth","Great Herring Pond",null,"Y"]
[null,null,null,null,null,null,"PlymouthGrassy West Pond","Plymouth","Plymouth","Grassy West Pond","Y"]
[null,null,null,null,null,null,"PlymouthGunners Exchange Pond","Plymouth","Plymouth","Gunners Exchange Pond","Y"]
[null,null,null,null,null,null,"PlymouthHalfway Pond","Plymouth","Plymouth","Halfway Pond","Y"]
[null,null,null,null,null,null,"PlymouthLittle Long Pond","Plymouth","Plymouth","Little Long Pond","Y"]
[null,null,null,null,null,null,"PlymouthLittle Herring Pond","Plymouth","Plymouth","Little Herring Pond",null,"Y"]
[null,null,null,null,null,null,"PlymouthLittle South Pond","Plymouth","Plymouth","Little South Pond","Y"]
[null,null,null,null,null,null,"PlymouthLittle West Pond","Plymouth","Plymouth","Little West Pond","Y"]
[null,null,null,null,null,null,"PlymouthLong Pond","Plymouth","Plymouth","Long Pond","Y"]
[null,null,null,null,null,null,"PlymouthNorth Triangle Pond","Plymouth","Plymouth","North Triangle Pond","Y"]
[null,null,null,null,null,null,"PlymouthShip/Savoy Pond","Plymouth","Plymouth","Ship/Savoy Pond",null,null,"Y"]
[null,null,null,null,null,null,"PlymouthWhite Island Pond","Plymouth","Plymouth","White Island Pond",null,"Y"]
[null,null,null,null,null,null,"PlymptonIndian Pond","Plympton","Plymouth","Indian Pond",null,null,"Y"]
[null,null,null,null,null,null,"PlymptonSilver Lake","Plympton","Plymouth","Silver Lake",null,null,"Y"]
[null,null,null,null,null,null,"RochesterGreat Quittacas Pond","Rochester","Plymouth","Great Quittacas Pond",null,null,"Y"]
[null,null,null,null,null,null,"RochesterLittle Quittacas Pond","Rochester","Plymouth","Little Quittacas Pond",null,null,"Y"]
[null,null,null,null,null,null,"RochesterMary Pond","Rochester","Plymouth","Mary Pond",null,null,"Y"]
[null,null,null,null,null,null,"RochesterSnipatuit Pond","Rochester","Plymouth","Snipatuit Pond",null,null,"Y"]
[null,null,null,null,null,null,"RocklandAccord Pond","Rockland","Plymouth","Accord Pond",null,"Y"]
[null,null,null,null,null,null,"ScituateMusquashcut Pond","Scituate","Plymouth","Musquashcut Pond",null,null,"Y"]
[null,null,null,null,null,null,"WarehamBartlett Pond","Wareham","Plymouth","Bartlett Pond",null,null,"Y"]
[null,null,null,null,null,null,"WarehamBlackmoor Pond","Wareham","Plymouth","Blackmoor Pond","Y"]
[null,null,null,null,null,null,"WarehamCedar Pond","Wareham","Plymouth","Cedar Pond","Y"]
[null,null,null,null,null,null,"WarehamDick's Pond","Wareham","Plymouth","Dick's Pond","Y"]
[null,null,null,null,null,null,"WarehamSandy/Pickeral Pond","Wareham","Plymouth","Sandy/Pickeral Pond","Y"]
[null,null,null,null,null,null,"WarehamSpectacle Pond","Wareham","Plymouth","Spectacle Pond","Y"]
[null,null,null,null,null,null,"BostonJamaica Pond","Boston","Suffolk","Jamaica Pond","Y"]
[null,null,null,null,null,null,"AshburnhamCheshire Pond","Ashburnham","Worcester","Cheshire Pond","Y"]
[null,null,null,null,null,null,"AshburnhamLincoln Pond","Ashburnham","Worcester","Lincoln Pond",null,"Y"]
[null,null,null,null,null,null,"AshburnhamLower Naukeage Pond","Ashburnham","Worcester","Lower Naukeage Pond",null,"Y"]
[null,null,null,null,null,null,"AshburnhamUpper Naukeage Pond","Ashburnham","Worcester","Upper Naukeage Pond",null,"Y"]
[null,null,null,null,null,null,"AshburnhamWard Pond","Ashburnham","Worcester","Ward Pond",null,"Y"]
[null,null,null,null,null,null,{"$f":"CONCATENATE(H514,J514)","v":"AshburnhamWatatic Pond"},"Ashburnham","Worcester","Watatic Pond","Y"]
[null,null,null,null,null,null,"AshburnhamWinnekeag Pond","Ashburnham","Worcester","Winnekeag Pond",null,"Y"]
[null,null,null,null,null,null,"AtholLake Rohunta","Athol","Worcester","Lake Rohunta",null,null,"Y"]
[null,null,null,null,null,null,"AuburnEddy Pond","Auburn","Worcester","Eddy Pond",null,"Y"]
[null,null,null,null,null,null,"BerlinGates Pond","Berlin","Worcester","Gates Pond",null,"Y"]
[null,null,null,null,null,null,"BlackstoneHarris Pond","Blackstone","Worcester","Harris Pond",null,"Y"]
[null,null,null,null,null,null,"BoltonLittle Pond","Bolton","Worcester","Little Pond","Y"]
[null,null,null,null,null,null,"BoltonWest Pond","Bolton","Worcester","West Pond","Y"]
[null,null,null,null,null,null,"BoylstonPout Pond","Boylston","Worcester","Pout Pond","Y"]
[null,null,null,null,null,null,"BoylstonRocky Pond","Boylston","Worcester","Rocky Pond",null,"Y"]
[null,null,null,null,null,null,"BoylstonSewell Pond","Boylston","Worcester","Sewell Pond","Y"]
[null,null,null,null,null,null,"BrookfieldQuaboag/Podunk Pond","Brookfield","Worcester","Quaboag/Podunk Pond","Y"]
[null,null,null,null,null,null,"BrookfieldSouth Pond/Quacumquasit Pond","Brookfield","Worcester","South Pond/Quacumquasit Pond","Y"]
[null,null,null,null,null,null,"CharltonBlood Pond","Charlton","Worcester","Blood Pond","Y"]
[null,null,null,null,null,null,"CharltonGore Pond","Charlton","Worcester","Gore Pond",null,"Y"]
[null,null,null,null,null,null,"ClintonCoachlace Pond","Clinton","Worcester","Coachlace Pond",null,"Y"]
[null,null,null,null,null,null,"ClintonMossy Pond","Clinton","Worcester","Mossy Pond",null,"Y"]
[null,null,null,null,null,null,"ClintonSouth Meadow Pond","Clinton","Worcester","South Meadow Pond",null,"Y"]
[null,null,null,null,null,null,"DouglasManchaug Lake","Douglas","Worcester","Manchaug Lake",null,"Y"]
[null,null,null,null,null,null,"DouglasWallum Pond","Douglas","Worcester","Wallum Pond",null,"Y"]
[null,null,null,null,null,null,"DouglasBad Luck Pond","Douglas","Worcester","Bad Luck Pond",null,null,"Y"]
[null,null,null,null,null,null,"DudleyBlood Pond","Dudley","Worcester","Blood Pond","Y"]
[null,null,null,null,null,null,"DudleyGore Pond","Dudley","Worcester","Gore Pond",null,"Y"]
[null,null,null,null,null,null,"DudleyHayden Pond","Dudley","Worcester","Hayden Pond",null,"Y"]
[null,null,null,null,null,null,"DudleyPeter Pond","Dudley","Worcester","Peter Pond",null,"Y"]
[null,null,null,null,null,null,"GardnerCrystal Lake","Gardner","Worcester","Crystal Lake",null,"Y"]
[null,null,null,null,null,null,"GardnerKendall Pond","Gardner","Worcester","Kendall Pond","Y"]
[null,null,null,null,null,null,"GardnerSnake Pond","Gardner","Worcester","Snake Pond",null,null,"Y"]
[null,null,null,null,null,null,"GraftonFlint's Pond","Grafton","Worcester","Flint's Pond",null,"Y"]
[null,null,null,null,null,null,"HarvardBare Hill Pond","Harvard","Worcester","Bare Hill Pond",null,"Y"]
[null,null,null,null,null,null,"HarvardHell/Mirror Lake","Harvard","Worcester","Hell/Mirror Lake","Y"]
[null,null,null,null,null,null,"HoldenQuinapoxet Pond","Holden","Worcester","Quinapoxet Pond",null,"Y"]
[null,null,null,null,null,null,"HubbardstonAsnacomet/Comet Pond","Hubbardston","Worcester","Asnacomet/Comet Pond",null,"Y"]
[null,null,null,null,null,null,"HubbardstonMoosehorn Pond","Hubbardston","Worcester","Moosehorn Pond",null,"Y"]
[null,null,null,null,null,null,"LancasterFort Pond","Lancaster","Worcester","Fort Pond",null,"Y"]
[null,null,null,null,null,null,"LancasterLittle Spectacle Pond","Lancaster","Worcester","Little Spectacle Pond","Y"]
[null,null,null,null,null,null,"LancasterSpectacle Pond","Lancaster","Worcester","Spectacle Pond","Y"]
[null,null,null,null,null,null,"LancasterTurner Pond","Lancaster","Worcester","Turner Pond",null,null,"Y"]
[null,null,null,null,null,null,{"$f":"CONCATENATE(H552,J552)","v":"LancasterWhite Pond"},"Lancaster","Worcester","White Pond",null,"Y"]
[null,null,null,null,null,null,"LeicesterHenshaw Pond","Leicester","Worcester","Henshaw Pond",null,"Y"]
[null,null,null,null,null,null,"LeominsterRocky Pond","Leominster","Worcester","Rocky Pond","Y"]
[null,null,null,null,null,null,"LeominsterWhalom Pond","Leominster","Worcester","Whalom Pond",null,"Y"]
[null,null,null,null,null,null,"LeominsterWhite Pond","Leominster","Worcester","White Pond",null,"Y"]
[null,null,null,null,null,null,"LunenburgMassapoag Pond","Lunenburg","Worcester","Massapoag Pond","Y"]
[null,null,null,null,null,null,"LunenburgWhalom Pond","Lunenburg","Worcester","Whalom Pond",null,"Y"]
[null,null,null,null,null,null,"MendonNipmuck Pond","Mendon","Worcester","Nipmuck Pond","Y"]
[null,null,null,null,null,null,"MilfordBeaver Pond","Milford","Worcester","Beaver Pond",null,"Y"]
[null,null,null,null,null,null,"MilfordLake Maspenock/North Pond","Milford","Worcester","Lake Maspenock/North Pond",null,"Y"]
[null,null,null,null,null,null,"MillburyDorothy Pond","Millbury","Worcester","Dorothy Pond",null,"Y"]
[null,null,null,null,null,null,"MillburyRamshorn Pond","Millbury","Worcester","Ramshorn Pond",null,"Y"]
[null,null,null,null,null,null,"MillburySingletary Pond","Millbury","Worcester","Singletary Pond",null,"Y"]
[null,null,null,null,null,null,"NorthboroughLittle Chauncy Pond","Northborough","Worcester","Little Chauncy Pond","Y"]
[null,null,null,null,null,null,"NorthboroughSoloman Pond","Northborough","Worcester","Soloman Pond","Y"]
[null,null,null,null,null,null,"OakhamBrowning Pond","Oakham","Worcester","Browning Pond",null,"Y"]
[null,null,null,null,null,null,"OakhamMuddy Pond","Oakham","Worcester","Muddy Pond",null,"Y"]
[null,null,null,null,null,null,"OxfordCarbuncle Pond","Oxford","Worcester","Carbuncle Pond","Y"]
[null,null,null,null,null,null,"PaxtonAsnebumskit Pond","Paxton","Worcester","Asnebumskit Pond",null,"Y"]
[null,null,null,null,null,null,"PaxtonTurkey Hill Pond","Paxton","Worcester","Turkey Hill Pond",null,"Y"]
[null,null,null,null,null,null,"PhillipstonQueen Lake","Phillipston","Worcester","Queen Lake",null,"Y"]
[null,null,null,null,null,null,"PrincetonQuinapoxet Pond","Princeton","Worcester","Quinapoxet Pond",null,"Y"]
[null,null,null,null,null,null,"PrincetonWachusett Lake","Princeton","Worcester","Wachusett Lake",null,"Y"]
[null,null,null,null,null,null,"RoyalstonLong Pond","Royalston","Worcester","Long Pond","Y"]
[null,null,null,null,null,null,"RutlandDemond Pond","Rutland","Worcester","Demond Pond",null,"Y"]
[null,null,null,null,null,null,"RutlandLong Pond","Rutland","Worcester","Long Pond",null,"Y"]
[null,null,null,null,null,null,{"$f":"CONCATENATE(H578,J578)","v":"RutlandMushopauge Pond"},"Rutland","Worcester","Mushopauge Pond",null,"Y"]
[null,null,null,null,null,null,"RutlandTurkey Hill Pond","Rutland","Worcester","Turkey Hill Pond",null,"Y"]
[null,null,null,null,null,null,"ShrewsburyFlint's Pond","Shrewsbury","Worcester","Flint's Pond",null,"Y"]
[null,null,null,null,null,null,"ShrewsburyJordan Pond","Shrewsbury","Worcester","Jordan Pond","Y"]
[null,null,null,null,null,null,"ShrewsburyLake Quinsigamond","Shrewsbury","Worcester","Lake Quinsigamond",null,"Y"]
[null,null,null,null,null,null,"SpencerBrowning Pond","Spencer","Worcester","Browning Pond",null,"Y"]
[null,null,null,null,null,null,"SterlingEast Washaccum Pond","Sterling","Worcester","East Washaccum Pond",null,"Y"]
[null,null,null,null,null,null,"SterlingFitch Pond","Sterling","Worcester","Fitch Pond","Y"]
[null,null,null,null,null,null,"SterlingWest Waushaccum Pond","Sterling","Worcester","West Waushaccum Pond",null,"Y"]
[null,null,null,null,null,null,"SturbridgeAlum Pond","Sturbridge","Worcester","Alum Pond",null,"Y"]
[null,null,null,null,null,null,"SturbridgeCedar Pond","Sturbridge","Worcester","Cedar Pond",null,"Y"]
[null,null,null,null,null,null,"SturbridgeLead Mine Pond","Sturbridge","Worcester","Lead Mine Pond","Y"]
[null,null,null,null,null,null,"SturbridgeLong Pond","Sturbridge","Worcester","Long Pond",null,null,"Y"]
[null,null,null,null,null,null,"SturbridgeSouth Pond/Quacumquasit Pond","Sturbridge","Worcester","South Pond/Quacumquasit Pond","Y"]
[null,null,null,null,null,null,"SturbridgeWalker Pond","Sturbridge","Worcester","Walker Pond",null,"Y"]
[null,null,null,null,null,null,"SuttonManchaug Lake","Sutton","Worcester","Manchaug Lake",null,"Y"]
[null,null,null,null,null,null,"SuttonRamshorn Pond","Sutton","Worcester","Ramshorn Pond",null,"Y"]
[null,null,null,null,null,null,"SuttonSingletary Pond","Sutton","Worcester","Singletary Pond",null,"Y"]
[null,null,null,null,null,null,"UptonPratt Pond","Upton","Worcester","Pratt Pond",null,"Y"]
[null,null,null,null,null,null,"UptonLake Maspenock/North Pond","Upton","Worcester","Lake Maspenock/North Pond",null,"Y"]
[null,null,null,null,null,null,"WebsterWebster Lake","Webster","Worcester","Webster Lake",null,"Y"]
[null,null,null,null,null,null,"West BrookfieldWickaboag Pond","West Brookfield","Worcester","Wickaboag Pond",null,"Y"]
[null,null,null,null,null,null,"WestboroughCedar Swamp Pond","Westborough","Worcester","Cedar Swamp Pond",null,null,"Y"]
[null,null,null,null,null,null,"WestboroughHoncomonock Pond","Westborough","Worcester","Honcomonock Pond",null,null,"Y"]
[null,null,null,null,null,null,"WestboroughLake Chauncy","Westborough","Worcester","Lake Chauncy",null,null,"Y"]
[null,null,null,null,null,null,"WestboroughGrassy Meadow/Wyam Reservoir","Westborough","Worcester","Grassy Meadow/Wyam Reservoir",null,null,"Y"]
[null,null,null,null,null,null,"WestboroughMeeting House Pond","Westborough","Worcester","Meeting House Pond",null,null,"Y"]
[null,null,null,null,null,null,"WestminsterMeetinghouse Pond","Westminster","Worcester","Meetinghouse Pond",null,"Y"]
[null,null,null,null,null,null,"WestminsterMuddy Pond","Westminster","Worcester","Muddy Pond","Y"]
[null,null,null,null,null,null,"WestminsterWachusett Lake","Westminster","Worcester","Wachusett Lake",null,"Y"]
[null,null,null,null,null,null,"WestminsterWyam Pond","Westminster","Worcester","Wyam Pond",null,"Y"]
[null,null,null,null,null,null,"WinchendonLake Denison","Winchendon","Worcester","Lake Denison","Y"]
[null,null,null,null,null,null,"WinchendonLake Monomonac","Winchendon","Worcester","Lake Monomonac",null,"Y"]
[null,null,null,null,null,null,"WorcesterFlint's Pond","Worcester","Worcester","Flint's Pond",null,"Y"]
[null,null,null,null,null,null,"WorcesterIndian Lake/North Pond","Worcester","Worcester","Indian Lake/North Pond",null,"Y"]
[null,null,null,null,null,null,"WorcesterLake Quinsigamond","Worcester","Worcester","Lake Quinsigamond",null,"Y"]
[null,null,null,null,null,null,"GosnoldWest End Pond","Gosnold","Dukes","West End Pond","Y"]
[null,null,null,null,null,null,"ClintonClamshell Pond","Clinton","Dukes","Clamshell Pond","Y"]